Cogmind - Beta 12 --- EXPLORER MODE // 2023.03.26 @ 23:58:41 // AFD2018/Launchers Player: Rathgar Result: Self-destructed Performance ------------- Evolutions (2) 1000 Regions Visited (3) 600 Robots Destroyed (32) 160 Value Destroyed (730) 730 Prototype IDs (0) 0 Alien Tech Used (0) 0 Bonus (8) 8 TOTAL SCORE: 2498 Bonus ------- High Alert Combat Kills 8 Cogmind --------- Core Integrity 550/550 Matter 14/300 Energy 100/100 System Corruption 0% Temperature Cool (0) Movement Treading (160) Location -8/Materials Parts ------- > --- POWER (2) -------- (None) > --- PROPULSION (2) --- Light Treads > --- UTILITY (4) ------ Heat Sink Signal Interpreter > --- WEAPON (4) ------- Rocket Launcher Rocket Launcher > --- INVENTORY (5) ---- EM Shotgun EMP Blaster EMP Blaster Mini Grenade Launcher Mini Grenade Launcher Peak State ------------ > --- POWER ------------ Light Ion Engine Improved Ion Engine > --- PROPULSION ------- Light Treads Light Treads > --- UTILITY ---------- Heat Sink Signal Interpreter > --- WEAPON ----------- Mini Grenade Launcher Mini Grenade Launcher Mini Grenade Launcher > --- INVENTORY -------- EM Shotgun EMP Blaster EMP Blaster Rocket Launcher Rocket Launcher [Rating: 14] Favorites ----------- Power Light Ion Engine Engine Light Ion Engine Propulsion Light Treads Treads Light Treads Leg Aluminum Leg Utility Signal Interpreter Device Heat Sink Processor Signal Interpreter Weapon Rocket Launcher Energy Gun EM Shotgun Ballistic Gun Assault Rifle Launcher Rocket Launcher Build | -11 -10 -9 -8 ------- Run | Jun Mat Mat Mat Slots Evolved 5 | . 1 2 2 Power 1 | . 1 . . Propulsion . | . . . . Utility 2 | . . 1 1 Weapon 2 | . . 1 1 Parts Attached 23 | 3 3 17 . Power 4 | 1 1 2 . Engine 4 | 1 1 2 . Core . | . . . . Reactor . | . . . . Propulsion 4 | . . 4 . Treads 2 | . . 2 . Leg 2 | . . 2 . Wheel . | . . . . Hover . | . . . . Flight . | . . . . Utility 2 | . . 2 . Device 1 | . . 1 . Storage . | . . . . Processor 1 | . . 1 . Hackware . | . . . . Protection . | . . . . Artifact . | . . . . Weapon 13 | 2 2 9 . Energy Gun 1 | . . 1 . Energy Cannon . | . . . . Ballistic Gun 1 | . . 1 . Ballistic Cannon . | . . . . Launcher 11 | 2 2 7 . Special Weapon . | . . . . Impact Weapon . | . . . . Slashing Weapon . | . . . . Piercing Weapon . | . . . . Special Melee Weapon . | . . . . Unidentified Prototypes . | . . . . Parts Lost 8 | . 2 6 . Power 3 | . 1 2 . Propulsion 1 | . . 1 . Utility . | . . . . Weapon 4 | . 1 3 . Highest Loss Streak 2 | . 2 2 . To Critical Strikes 1 | . 1 . . Average Slot Usage (%) 50 | . 29 61 41 Engine 10 | . 10 10 . Treads 7 | . . 12 8 Device 4 | . . 7 8 Processor 5 | . . 7 8 Launcher 20 | . 18 21 16 Naked Turns 82 | . 45 37 . Heaviest Build 23 | 9 9 23 9 Greatest Support 40 | 3 3 40 20 Greatest Overweight (x) 2 | 2 2 1 . Average Overweight (x) . | 1 1 . . Largest Inventory Capacity 5 | 5 5 5 5 Average Capacity 5 | 5 5 5 5 Most Carried 5 | 2 5 5 5 Average Carried 2 | . 1 3 5 Final Capacity 5 | 5 5 5 5 Final Carried 5 | . 2 5 5 Class Distribution -------------------- 62% | Hacker-Mutant 17% | Hacker-Bomber 15% | Scavenger-Bomber 4% | Scavenger-Mutant Dominant Class ---------------- Hacker-Mutant | -10/Materials Hacker-Mutant | -9/Materials Hacker-Mutant | -8/Materials Resources | -11 -10 -9 -8 ----------- Run | Jun Mat Mat Mat Matter Collected 433 | 69 . 364 . Remotely . | . . . . Salvage Created 647 | 76 29 542 . Parts 63 | 4 5 54 . Haulers Intercepted . | . . . . Recyclers Shooed 1 | . . 1 . Parts Field Recycled . | . . . . Retrieved Matter . | . . . . Parts Self-Destructed . | . . . . Prevented . | . . . . Kills | -11 -10 -9 -8 ------- Run | Jun Mat Mat Mat Combat Hostiles Destroyed 16 | . 2 14 . Guns 5 | . . 5 . AOE 11 | . 2 9 . Classes Destroyed 9 | 2 3 4 . Worker 2 | . 1 1 . Builder 4 | . . 4 . Tunneler 5 | 5 . . . Recycler 1 | 1 . . . Operator 1 | . . 1 . Watcher 3 | . 1 2 . Swarmer 4 | . 2 2 . Grunt 7 | . . 7 . Sentry 5 | . . 5 . Best Kill Streak 6 | 5 2 6 . Combat Bots Only 5 | . 2 5 . Max Kills in Single Turn 4 | 4 2 4 . Gunslinging . | . . . . Exploded 2 | . 2 2 . Melee . | . . . . Uniques/NPCs Destroyed . | . . . . Combat | -11 -10 -9 -8 -------- Run | Jun Mat Mat Mat Damage Taken 1253 | 23 166 1064 . Core 469 | . 85 384 . Absorbed by Shields . | . . . . Core Remaining (%) 56 | 100 66 4 . Volleys Fired 22 | 3 4 15 . Largest 3 | 2 2 3 . Hottest 99 | 60 60 99 . Shots Fired 45 | 6 7 32 . Gun 11 | . . 11 . Cannon . | . . . . Launcher 34 | 6 7 21 . Special . | . . . . Kinetic 3 | . . 3 . Thermal . | . . . . Explosive 34 | 6 7 21 . Electromagnetic 8 | . . 8 . Robot Hit Streak 19 | 6 7 19 . Robot Miss Streak 1 | . 1 1 . Penetration Max . | . . . . Secondary Targets 1 | . . 1 . Max Gunslinging Chain 1 | . . 1 . Shots Hit Robots 31 | 6 3 22 . Core Hits 47 | 9 7 31 . Critical Kills . | . . . . Critical Parts Destroyed . | . . . . Critical Strikes . | . . . . Melee Attacks . | . . . . Impact . | . . . . Slashing . | . . . . Piercing . | . . . . Sneak Attacks . | . . . . Combat Hostiles . | . . . . Follow-up Attacks . | . . . . Damage Inflicted 1814 | 314 387 1113 . Guns 163 | . . 163 . Cannons . | . . . . Explosions 1625 | 314 386 925 . Melee . | . . . . Ramming 26 | . 1 25 . Kinetic 39 | . . 39 . Thermal 387 | . 228 159 . Explosive 1238 | 314 158 766 . Electromagnetic 124 | . . 124 . Impact . | . . . . Slashing . | . . . . Piercing . | . . . . Highest Corruption 2 | . 1 2 . Average Corruption 1 | . 1 2 . Corruption Purged . | . . . . Corruption Blocked . | . . . . Effects 8 | . 2 6 . Message Errors 2 | . . 2 . Matter Fused 3 | . 1 2 . Energy Discharges 1 | . 1 . . Data Loss (major) 1 | . . 1 . Misfires 1 | . . 1 . Overload Shots . | . . . . Overflow Damage 314 | . 165 149 . Projectiles . | . . . . Explosions 314 | . 165 149 . Melee . | . . . . Knockbacks . | . . . . Impact . | . . . . Kinetic . | . . . . Secondary . | . . . . Self-Inflicted Damage 156 | 23 . 133 . Shots 10 | 2 . 8 . Rammed 8 | . 1 7 . Targets Rammed 8 | . 1 7 . Kicked . | . . . . Crushed . | . . . . Highest Temperature 9 | . . 9 . Average Temperature 5 | . . 5 . Received Heat Transfer 462 | . 15 447 . Siege Activations . | . . . . Robots Corrupted . | . . . . Combat Hostiles . | . . . . Parts Fried . | . . . . Impact Corruptions . | . . . . Robots Melted . | . . . . Combat Hostiles . | . . . . Parts Melted . | . . . . Heat Transferred 250 | . 150 100 . Parts Sabotaged . | . . . . Parts Stolen . | . . . . Parts Stripped . | . . . . Power Chain Reactions . | . . . . Missiles Intercepted . | . . . . Alert | -11 -10 -9 -8 ------- Run | Jun Mat Mat Mat Peak Influence 459 | 30 161 459 57 Initial 57 | . 14 . 57 Average 137 | 12 57 193 57 Maximum Alert Level 2 | . . 2 . Low Security (%) 78 | 100 100 64 100 Level 1 19 | . . 32 . Level 2 1 | . . 3 . Level 3 . | . . . . Level 4 . | . . . . Level 5 . | . . . . High Security . | . . . . Max Security . | . . . . Squads Dispatched 4 | . . 4 . Investigation . | . . . . Extermination . | . . . . Reinforcement 4 | . . 4 . Assault . | . . . . Garrison . | . . . . Intercept . | . . . . Searches Triggered . | . . . . Construction Impeded 1 | . . 1 . Haulers Reinforced . | . . . . Active Scanning Responses . | . . . . Cargo Convoy Interrupts . | . . . . Stealth | -11 -10 -9 -8 --------- Run | Jun Mat Mat Mat Distress Signals 7 | . 1 6 . Communications Jammed . | . . . . Distress Signals . | . . . . Times Spotted 35 | . 11 24 . Peak Tracking Total 7 | . 4 7 . Tactical Retreats . | . . . . Traps | -11 -10 -9 -8 ------- Run | Jun Mat Mat Mat Traps Triggered 7 | . 7 . . Indirectly . | . . . . Trap Hack Attempts . | . . . . Triggered . | . . . . Disarmed . | . . . . Reprogrammed . | . . . . Reused . | . . . . Traps Extracted . | . . . . Installed . | . . . . Triggered . | . . . . Machines | -11 -10 -9 -8 ---------- Run | Jun Mat Mat Mat Machines Disabled 11 | . 5 6 . Max in Single Turn 4 | . 4 2 . Machines Repaired . | . . . . Machines Sabotaged . | . . . . Overloaded Fab Kills . | . . . . Hacking | -11 -10 -9 -8 --------- Run | Jun Mat Mat Mat Machines Accessed 5 | . 4 1 . Terminals 4 | . 3 1 . Fabricators . | . . . . Repair Stations . | . . . . Recycling Units 1 | . 1 . . Scanalyzers . | . . . . Garrison Access . | . . . . Total Hacks 14 | . 13 1 . Successful 11 | . 10 1 . Failed 3 | . 3 . . Catastrophic 1 | . 1 . . Database Lockouts . | . . . . Manual . | . . . . Terminals 11 | . 10 1 . Fabricators . | . . . . Repair Stations . | . . . . Recycling Units 3 | . 3 . . Scanalyzers . | . . . . Garrison Access . | . . . . Terminal Hacks 8 | . 7 1 . Record 5 | . 5 . . Alert Level 2 | . 1 1 . Locate Traps 1 | . 1 . . Fabricator Hacks . | . . . . Repair Station Hacks . | . . . . Recycling Unit Hacks 3 | . 3 . . Recycle Component 1 | . 1 . . Process 1 | . 1 . . Retrieve Matter 1 | . 1 . . Scanalyzer . | . . . . Garrison Access Hacks . | . . . . Unauthorized Hacks . | . . . . Terminals . | . . . . Fabricators . | . . . . Repair Stations . | . . . . Recycling Units . | . . . . Scanalyzers . | . . . . Garrison Access . | . . . . Data Cores Recovered . | . . . . Used . | . . . . Hacking Detections 4 | . 4 . . Full Trace Events 1 | . 1 . . Feedback Events . | . . . . Feedback Blocked . | . . . . Robot Schematics Acquired . | . . . . Robots Built . | . . . . Authchips . | . . . . Time . | . . . . Total Robot Build Rating . | . . . . Part Schematics Acquired . | . . . . Parts Built . | . . . . Authchips . | . . . . Time . | . . . . Total Part Build Rating . | . . . . Parts Repaired . | . . . . Time . | . . . . Parts Recycled 1 | . 1 . . Recycled Matter 31 | . 31 . . Retrieved Matter 31 | . 31 . . Retrieved Components . | . . . . Parts Scanalyzed . | . . . . Part Schematics Acquired . | . . . . Parts Damaged . | . . . . Bothacking | -11 -10 -9 -8 ------------ Run | Jun Mat Mat Mat Used RIF Installer . | . . . . Robots Hacked . | . . . . Non-combat . | . . . . Combat . | . . . . Robot Hacks Applied . | . . . . Relay Couplers Released . | . . . . Fabnet Peak Effective % . | . . . . Robots Rewired . | . . . . Allies Hacked . | . . . . Hacks Repelled . | . . . . Allies | -11 -10 -9 -8 -------- Run | Jun Mat Mat Mat Total Allies . | . . . . Largest Group . | . . . . Highest-Rated Group . | . . . . Highest-Rated Ally . | . . . . Total Orders . | . . . . Ally Attacks . | . . . . Total Damage . | . . . . Kills . | . . . . Allies Corrupted . | . . . . Allies Melted . | . . . . Intel | -11 -10 -9 -8 ------- Run | Jun Mat Mat Mat Robot Analysis Total . | . . . . Derelict Logs Recovered . | . . . . Drone Launches . | . . . . Drone Recoveries . | . . . . Exploration | -11 -10 -9 -8 ------------- Run | Jun Mat Mat Mat Turns Passed 1563 | 75 516 944 28 Spaces Moved 1136 | 58 433 628 17 Core 660 | 58 433 169 . Treads 472 | . . 455 17 Legs 4 | . . 4 . Wheels . | . . . . Hover . | . . . . Flight . | . . . . Fastest Speed 50 | 50 50 50 160 Average Speed 126 | 105 114 136 160 Slowest Speed 160 | 150 150 160 160 Overloaded Moves . | . . . . Propulsion Burnouts . | . . . . Robots Hopped . | . . . . Cave-ins Triggered 1 | . . 1 . Exploration Rate (%) 30 | 3 69 48 3 Regions Visited 3 Branch Regions . Pre-discovered Areas . | . . . . Known Exits Taken 3 | 1 1 1 . Unknown Exits Taken . | . . . . Scrap Searched . | . . . . Spaces Dug . | . . . . Terrain Destroyed 249 | 36 41 172 . Melee . | . . . . Projectile . | . . . . AOE 249 | 36 41 172 . Terrain Rammed . | . . . . Walls Destroyed . | . . . . Machines Disabled . | . . . . Actions | -11 -10 -9 -8 --------- Run | Jun Mat Mat Mat Total 1216 | 66 446 687 17 Wait . | . . . . Move 1132 | 57 432 626 17 Hop . | . . . . Pick Up 26 | 3 6 17 . Fast Attach 1 | . . 1 . Attach 18 | 3 3 12 . Detach . | . . . . Swap 4 | . . 4 . Drop 4 | . . 4 . Fire 22 | 3 4 15 . Melee . | . . . . Ram 7 | . 1 6 . Kick . | . . . . Crush 1 | . . 1 . Escape Stasis 1 | . . 1 . Rewire . | . . . . Trap . | . . . . Miscellaneous . | . . . . Route ------- -11/Junkyard -10/Materials (discovered 2 exits: *Mat / *Min) -9/Materials -8/Materials History --------- Turn | Location | Event 12 | -11/Junkyard | Identified exit to Materials 12 | -11/Junkyard | Discovered exit to Materials (range 16) 76 | -11/Junkyard | Entered Materials 76 | -10/Materials | Evolved 1 slot: Power x1 201 | -10/Materials | Identified exit to Mines 201 | -10/Materials | Discovered exit to Mines (range 15) 314 | -10/Materials | Build established: Hacker-Mutant 587 | -10/Materials | Identified exit to Materials 587 | -10/Materials | Discovered exit to Materials (range 8) 592 | -10/Materials | Entered another Materials area 592 | -9/Materials | Evolved 2 slots: Utility x1, Weapon x1 706 | -9/Materials | Core integrity fell below 50% 1136 | -9/Materials | Crushed by falling debris 1345 | -9/Materials | Core integrity fell below 20% 1510 | -9/Materials | Identified exit to Materials 1510 | -9/Materials | Discovered exit to Materials (range 16) 1536 | -9/Materials | Entered another Materials area 1536 | -8/Materials | Evolved 2 slots: Utility x1, Weapon x1 1564 | -8/Materials | Self-destructed Last Messages --------------- 01384_ K-01 Serf collects debris. 01384_ M-13 Machinist fits Backup Power I on R-06 Scavenger. 01386_ R-06 Scavenger collects Ion Engine. 01387_ K-01 Serf collects debris. 01390_ K-01 Serf cleans the Material Processor. 01394_ G-34 Mercenary destroyed. 01396_ K-01 Serf collects debris. 01408_ 9VKDFJT0FR=#V4GAWXDK9#7U 01416_ K-01 Serf cleans the Terminal. 01438_ Slammed into A-02 Transporter. 01453_ System corrupted: Substantial component data lost. 01466_ Lgt. Ion Engine destroyed. 01472_ Rocket Launcher destroyed. 01510_ EXIT=FOUND: MATERIALS 01517_ System corrupted: Matter fused (-10). [Achievement: Close Call] PARAMETERS=UTILITY+1,WEAPON+1 LOCATION=MATERIALS GOAL=ESCAPE 01563_ K-01 Serf collects debris. Map ----- +----------------------------------------------------+ | ?????????????????????????????????????????????????? | | ?????????????????????????????????????????????????? | | ?????????????????????????????????????????????????? | | ?????????????????????????????????????????????????? | | ?????????????????????????????????????????????????? | | ?????????????????????????????????????????????????? | | ?????????????????????????????????????????????????? | | ?????????????????????????????????????????????????? | | ?????????????????????????????????????????????????? | | ?????????????????????????????????????????????????? | | ???????????????????????????? ???????????????????? | | ???????????????????????????? ???????????????????? | | ?????????????????????????+## ??????????????????? | | ????????????????????????? #?????????????????? | | ????????????????????????? #?????????????????? | | ???????????????????????## ??????????????????? | | ???????????????????????# ???????????????????? | | ???????????????????????# ????????????????????? | | ???????????????????????# k?????????????????????? | | ???????????????????????+ #?????????????????????? | | ???????????????????????# #?????????????????????? | | ???????????????????????# #?????????????????????? | | ??????????????????????## ##????????????????????? | | ????????############### ] #????????????????????? | | ????????# #????????????????????? | | ????????# @ #????????????????????? | | ????????# #????????????????????? | | ????????### ######+### #????????????????????? | | ??????????# #????????#######????????????????????? | | ??????????# #???????????????????????????????????? | | ??????????# #???????????????????????????????????? | | ??????????# #???????????????????????????????????? | | ??????????# #???????????????????????????????????? | | ??????????# #???????????????????????????????????? | | ??????????# #???????????????????????????????????? | | ??????????# #???????????????????????????????????? | | ??????????# #???????????????????????????????????? | | ??????????# #???????????????????????????????????? | | ??????????? ????????????????????????????????????? | | ??????????? ????????????????????????????????????? | | ??????????? ????????????????????????????????????? | | ?????????????????????????????????????????????????? | | ?????????????????????????????????????????????????? | | ?????????????????????????????????????????????????? | | ?????????????????????????????????????????????????? | | ?????????????????????????????????????????????????? | | ?????????????????????????????????????????????????? | | ?????????????????????????????????????????????????? | | ?????????????????????????????????????????????????? | | ?????????????????????????????????????????????????? | +----------------------------------------------------+ Best States ------------- Heat Dissipation 41 Energy Generation 17 Energy Capacity 290 Matter Stores 254 Matter Capacity 300 Sight Range 16 Terrain Scan Density 10 Resistance: KI 35 Resistance: TH 35 Resistance: EX 35 Resistance: EM 35 Resistance: I 35 Resistance: S 35 Resistance: P 35 Evasion (%) 50 Recoil Reduction 2 Offensive Hacking 20 Item Schematics ----------------- None Robot Schematics ------------------ None Fabricated ------------ Nothing Alien Tech Used ----------------- None Achievements -------------- Close Call Maybe Next Time I'll Detach My Launcher Unlikely Earthworm Challenges ------------ None Game ------ Seed ProcessingGammaCalibrator Manual? 0 Play Time 00:20:54 Cumulative 3.5 hours Start 2023.03.26 @ 23:00:51 End 2023.03.26 @ 23:58:41 Sessions 1 Manual Loads 0 Difficulty Explorer Special Mode AFD2018/Launchers Game No. 3 Rogue 0 Adventurer 0 Explorer 3 Win Type - Total 0 Types 0/0/0/0/0/0/0/0/0 Lore% 15 Gallery% 13 Achievement% 15 Wizard Run 0 Options --------- ASCII 0 Keyboard 0 Movement Arrows Keybinds 0 Fullscreen 1 Font 18/SmallcapsGlow Map View 76x50 Tactical HUD 1 Map Filters NONE Filters NONE Steam 1 RUN: 655065e4-ca22-4a98-8cca-0329f724dba5